fUSD/lending_fUSD_20260615
["ID","MTS","AMOUNT","RATE_DAILY","PERIOD"]
[425094410,1781487039000,-689.8611396,0.00014986,2]
[425094411,1781487039000,-150.0,0.00014986,2]
[425094385,1781487039000,-209.8814222,0.00014884,2]
[425094386,1781487039000,-2000.0,0.000149,2]
[425094388,1781487039000,-150.0,0.000149,2]
[425094390,1781487039000,-2991.57404873,0.000149,2]
[425094393,1781487039000,-798.61328668,0.000149,2]
[425094392,1781487039000,-985.19998152,0.000149,2]
[425094394,1781487039000,-538.42520205,0.000149,2]
[425094395,1781487039000,-679.41341252,0.000149,2]
[425094396,1781487039000,-3239.29,0.00014908,2]
[425094397,1781487039000,-221.985,0.00014908,2]
[425094399,1781487039000,-500.0,0.00014983,2]
[425094391,1781487039000,-7554.36406527,0.000149,2]
[425094398,1781487039000,-500.0,0.00014983,2]
[425094406,1781487039000,-605.62,0.00014985,2]
[425094408,1781487039000,-464.43,0.00014985,2]
[425094407,1781487039000,-441.48,0.00014985,2]
[425094405,1781487039000,-598.0,0.00014985,2]
[425094404,1781487039000,-3452.8939252,0.00014984,2]
[425094409,1781487039000,-163.06545356,0.00014985,2]
[425094403,1781487039000,-1063799.0789349,0.00014984,2]
[425094401,1781487039000,-500.0,0.00014983,2]
[425094400,1781487039000,-500.0,0.00014983,2]
[425094402,1781487039000,-500.0,0.00014983,2]
[425094451,1781487040000,-500.0,0.00014999,2]
[425094463,1781487040000,-500.0,0.00014999,2]
[425094459,1781487040000,-500.0,0.00014999,2]
[425094461,1781487040000,-500.0,0.00014999,2]
[425094456,1781487040000,-250.0,0.00014999,2]
[425094458,1781487040000,-500.0,0.00014999,2]
[425094457,1781487040000,-3000.0,0.00014999,2]
[425094455,1781487040000,-500.0,0.00014999,2]
[425094453,1781487040000,-500.0,0.00014999,2]
[425094454,1781487040000,-500.0,0.00014999,2]
[425094450,1781487040000,-500.0,0.00014999,2]
[425094449,1781487040000,-500.0,0.00014999,2]
[425094438,1781487040000,-690.26,0.00014999,2]
[425094445,1781487040000,-500.0,0.00014999,2]
[425094448,1781487040000,-484.52,0.00014999,2]
[425094446,1781487040000,-500.0,0.00014999,2]
[425094444,1781487040000,-500.0,0.00014999,2]
[425094447,1781487040000,-500.0,0.00014999,2]
[425094443,1781487040000,-500.0,0.00014999,2]
[425094442,1781487040000,-500.0,0.00014999,2]
[425094441,1781487040000,-500.0,0.00014999,2]
[425094440,1781487040000,-690.45,0.00014999,2]
[425094439,1781487040000,-690.26,0.00014999,2]
[425094462,1781487040000,-500.0,0.00014999,2]
[425094452,1781487040000,-500.0,0.00014999,2]
[425094460,1781487040000,-500.0,0.00014999,2]
[425094476,1781487040000,-500.0,0.00014999,2]
[425094468,1781487040000,-500.0,0.00014999,2]
[425094489,1781487040000,-8243724.53496153,0.00015,2]
[425094485,1781487040000,-300.0,0.00014999,2]
[425094487,1781487040000,-300.0,0.00014999,2]
[425094490,1781487040000,-1275.74,0.00015,2]
[425094488,1781487040000,-300.0,0.00014999,2]
[425094486,1781487040000,-300.0,0.00014999,2]
[425094484,1781487040000,-525.23032154,0.00014999,2]
[425094481,1781487040000,-500.0,0.00014999,2]
[425094483,1781487040000,-500.0,0.00014999,2]
[425094480,1781487040000,-500.0,0.00014999,2]
[425094482,1781487040000,-500.0,0.00014999,2]
[425094479,1781487040000,-500.0,0.00014999,2]
[425094478,1781487040000,-305.7923171,0.00014999,2]
[425094477,1781487040000,-500.0,0.00014999,2]
[425094475,1781487040000,-500.0,0.00014999,2]
[425094491,1781487040000,-1283140.7298518,0.00015,2]
[425094474,1781487040000,-500.0,0.00014999,2]
[425094473,1781487040000,-500.0,0.00014999,2]
[425094471,1781487040000,-500.0,0.00014999,2]
[425094472,1781487040000,-500.0,0.00014999,2]
[425094470,1781487040000,-500.0,0.00014999,2]
[425094469,1781487040000,-500.0,0.00014999,2]
[425094465,1781487040000,-500.0,0.00014999,2]
[425094467,1781487040000,-500.0,0.00014999,2]
[425094466,1781487040000,-500.0,0.00014999,2]
[425094464,1781487040000,-500.0,0.00014999,2]
[425094492,1781487041000,-494.10522242,0.00015,2]
[425094498,1781487042000,-439.138,0.00014067,2]
[425094497,1781487042000,-880.68122484,0.00014067,2]
[425094514,1781487043000,-500.0,0.00014067,2]
[425094512,1781487043000,-1628.28175737,0.00014067,2]
[425094513,1781487043000,-1016.65,0.00014067,2]
[425094515,1781487044000,1204.23,0.00030137,120]
[425094523,1781487046000,-463.11319434,0.00014067,2]
[425094521,1781487046000,-1419.20000004,0.00014067,2]
[425094520,1781487046000,-151.0,0.00012614,2]
[425094522,1781487046000,-639.25951587,0.00014067,2]
[425094528,1781487047000,-597.39434932,0.00014067,2]
[425094526,1781487047000,-164.35064524,0.00014067,2]
[425094527,1781487047000,-512.86000002,0.00014067,2]
[425094525,1781487047000,-151.0,0.00012614,2]
[425094531,1781487067000,153.47456365,0.0003013,120]
[425094532,1781487069000,789.1960726,0.0003013,120]
[425094537,1781487202000,188.03226184,0.00030137,120]
[425094538,1781487363000,500.09,0.00030137,120]
[425094539,1781487365000,2900.2515808,0.00030136,120]
[425094550,1781488147000,-533.93,0.00012891,2]
[425094545,1781488147000,-301.95849375,0.0001166,2]
[425094544,1781488147000,-300.0,0.0001166,2]
[425094542,1781488147000,-238.84066211,0.000106,2]
[425094546,1781488147000,-252.23589708,0.00011665,2]
[425094549,1781488147000,-166.66,0.00012767,2]
[425094548,1781488147000,-166.66,0.0001251,2]
[425094547,1781488147000,-166.66,0.00012252,2]
[425094551,1781488147000,-500.0,0.00012941,2]
[425094543,1781488147000,-150.68106,0.00010605,7]
[425094553,1781488147000,-500.0,0.00012941,2]
[425094554,1781488147000,-500.0,0.00012941,2]
[425094555,1781488147000,-500.0,0.00012941,2]
[425094556,1781488147000,-500.0,0.00012941,2]
[425094557,1781488147000,-500.0,0.00012941,2]
[425094558,1781488147000,-500.0,0.00012941,2]
[425094559,1781488147000,-500.0,0.00012941,2]
[425094561,1781488147000,-456.47081233,0.00012941,2]
[425094560,1781488147000,-500.0,0.00012941,2]
[425094552,1781488147000,-500.0,0.00012941,2]
[425094577,1781488232000,-500.0,0.00012998,2]
[425094576,1781488232000,-168.58521093,0.00012998,2]
[425094575,1781488232000,-150.0,0.00012996,2]
[425094585,1781488232000,-205.52,0.00013242,2]
[425094586,1781488232000,-405.18502018,0.00013263,2]
[425094589,1781488232000,-4578.58,0.0001327,2]
[425094588,1781488232000,-1852.42,0.00013264,2]
[425094593,1781488232000,-5004.17322841,0.00013385,2]
[425094590,1781488232000,-165.38,0.00013274,2]
[425094583,1781488232000,-166.66,0.00013025,2]
[425094591,1781488232000,-166.66,0.00013283,2]
[425094587,1781488232000,-324.4350908,0.00013263,2]
[425094584,1781488232000,-482.41,0.00013079,2]
[425094573,1781488232000,-381.32,0.00012951,2]
[425094581,1781488232000,-6162.2729062,0.00012999,2]
[425094579,1781488232000,-203.46647801,0.00012998,2]
[425094580,1781488232000,-3370.0370938,0.00012999,2]
[425094592,1781488232000,-1434.62,0.00013288,2]
[425094578,1781488232000,-509.25067811,0.00012998,2]
[425094574,1781488232000,-357.11,0.00012986,2]
[425094569,1781488232000,-500.0,0.0001294,2]
[425094567,1781488232000,-500.0,0.0001294,2]
[425094566,1781488232000,-500.0,0.0001294,2]
[425094570,1781488232000,-504.11301783,0.0001294,2]
[425094571,1781488232000,-500.0,0.0001294,2]
[425094565,1781488232000,-500.0,0.0001294,2]
[425094568,1781488232000,-500.0,0.0001294,2]
[425094572,1781488232000,-181.2,0.00012942,2]
[425094582,1781488232000,-500.0,0.00013023,2]
[425094595,1781488232000,-1399.23683918,0.00013385,2]
[425094598,1781488232000,-383.94753443,0.00013493,2]
[425094596,1781488232000,-5375.49677159,0.00013385,2]
[425094640,1781488232000,-876.80803702,0.00014517,2]
[425094639,1781488232000,-407.0,0.00014517,2]
[425094637,1781488232000,-965.04705474,0.00014517,2]
[425094629,1781488232000,-328.91,0.000143,2]
[425094627,1781488232000,-440.01,0.000143,2]
[425094631,1781488232000,-37924.87728324,0.00014517,2]
[425094625,1781488232000,-373.82,0.000143,2]
[425094623,1781488232000,-490.27,0.000143,2]
[425094621,1781488232000,-317.54884801,0.00014294,2]
[425094615,1781488232000,-512.35835057,0.00014294,2]
[425094617,1781488232000,-500.0,0.00014294,2]
[425094594,1781488232000,-527.08316082,0.00013385,2]
[425094612,1781488232000,-296.57742422,0.00014235,2]
[425094610,1781488232000,-255.0,0.00014101,2]
[425094619,1781488232000,-214.29495802,0.00014294,2]
[425094608,1781488232000,-250.0,0.00014,2]
[425094597,1781488232000,-200.0,0.000134,2]
[425094601,1781488232000,-501.67141008,0.00013698,2]
[425094599,1781488232000,-166.66,0.00013541,2]
[425094609,1781488232000,-1421.34424536,0.00014067,2]
[425094603,1781488232000,-200.0,0.00013699,2]
[425094602,1781488232000,-501.44066555,0.00013698,2]
[425094600,1781488232000,-502.62322906,0.00013698,2]
[425094606,1781488232000,-486.95420722,0.00013917,2]
[425094613,1781488232000,-244.99,0.00014238,2]
[425094611,1781488232000,-446.90917335,0.00014235,2]
[425094607,1781488232000,-500.0,0.0001399,2]
[425094614,1781488232000,-522.19341783,0.00014294,2]
[425094605,1781488232000,-159.73684769,0.00013699,2]
[425094654,1781488240000,-32599.73102766,0.00014517,2]
[425094653,1781488240000,-59720.52876872,0.00014517,2]
[425094651,1781488240000,-84902.46200007,0.00014517,2]
[425094652,1781488240000,-12530.29720224,0.00014517,2]
[425094655,1781488241000,-2106.41684275,0.00014517,2]
[425094671,1781488241000,-1300.0,0.00014517,2]
[425094656,1781488241000,-496.01402735,0.00014517,2]
[425094657,1781488241000,-647.5578043,0.00014517,2]
[425094687,1781488243000,-464.76347741,0.00014517,2]
[425094686,1781488243000,-541.54300055,0.00014517,2]
[425094685,1781488243000,-683.12984312,0.00014517,2]
[425094682,1781488243000,-524.60980056,0.00014517,2]
[425094683,1781488243000,-4821.12710788,0.00014517,2]
[425094684,1781488243000,-423.95581672,0.00014517,2]
[425094681,1781488243000,-332.32088404,0.00014517,2]
[425094679,1781488243000,-345.02617018,0.00014517,2]
[425094680,1781488243000,-358.37829051,0.00014517,2]
[425094699,1781488244000,-5079.2815764,0.00014517,2]
[425094698,1781488244000,-24443.9998,0.00014517,2]
[425094735,1781488655000,171.84402969,0.00030135,120]
[425094750,1781488823000,548.9,0.00029534,120]
[425094756,1781489019000,186.0,0.00029987,120]
[425094763,1781489237000,-12.00313046,0.00010812,2]
[425094762,1781489237000,-150.0,0.00010812,7]
[425094774,1781489431000,-458.42124504,0.00011888,2]
[425094768,1781489431000,-487.99686954,0.00010812,2]
[425094773,1781489431000,-301.80694827,0.00011888,2]
[425094770,1781489431000,-352.0565259,0.00011439,2]
[425094771,1781489431000,-150.0,0.00011448,7]
[425094769,1781489431000,-500.0,0.00010812,2]
[425094772,1781489431000,-217.53529897,0.00011448,7]
[425094776,1781489431000,-500.0,0.00011888,2]
[425094779,1781489431000,-200.41130178,0.00011888,2]
[425094777,1781489431000,-500.0,0.00011888,2]
[425094775,1781489431000,-41.57875496,0.00011888,2]
[425094778,1781489431000,-500.0,0.00011888,2]
[425094780,1781489431000,-579.55918558,0.00011893,2]
[425094781,1781489431000,-160.0,0.00011915,2]
[425094783,1781489431000,-678.46,0.0001227,2]
[425094782,1781489431000,-261.98,0.00012254,2]
[425094785,1781489431000,-348.2360598,0.0001259,2]
[425094784,1781489431000,-463.77361843,0.0001259,2]
[425094833,1781489438000,-187.8,0.00013303,2]
[425094837,1781489438000,-150.0,0.00013485,2]
[425094841,1781489438000,-1000.0,0.000135,2]
[425094839,1781489438000,-150.0,0.00013488,2]
[425094850,1781489438000,-1294.62669219,0.000138,2]
[425094838,1781489438000,-150.0,0.00013485,2]
[425094846,1781489438000,-164.53,0.00013643,2]
[425094844,1781489438000,-8284.86,0.00013608,2]
[425094842,1781489438000,-558.41,0.00013608,2]
[425094845,1781489438000,-157.2008546,0.00013608,2]
[425094847,1781489438000,-500.0,0.00013648,2]
[425094832,1781489438000,-493.04,0.00013303,2]
[425094848,1781489438000,-166.66,0.00013651,2]
[425094849,1781489438000,-2500.0,0.00013799,2]
[425094851,1781489438000,-3000.0,0.000138,2]
[425094843,1781489438000,-891.21,0.00013608,2]
[425094834,1781489438000,-187.8,0.00013303,2]
[425094817,1781489438000,-254.97,0.00012593,2]
[425094828,1781489438000,-15812.93682748,0.00013,5]
[425094818,1781489438000,-2669.47,0.0001263,2]
[425094816,1781489438000,-166.66,0.0001259,2]
[425094815,1781489438000,-2288.19032177,0.0001259,2]
[425094820,1781489438000,-701.25,0.00012646,2]
[425094819,1781489438000,-698.17,0.00012646,2]
[425094822,1781489438000,-306.11,0.00012689,2]
[425094821,1781489438000,-193.49,0.00012679,2]
[425094830,1781489438000,-200.0,0.00013252,2]
[425094823,1781489438000,-150.0,0.00012835,2]
[425094835,1781489438000,-166.66,0.00013385,2]
[425094836,1781489438000,-250.31325992,0.00013483,2]
[425094831,1781489438000,-150.0,0.00013302,2]
[425094827,1781489438000,-1266.36153627,0.00013,2]
[425094826,1781489438000,-166.66,0.00012855,2]
[425094829,1781489438000,-166.66,0.0001312,2]
[425094824,1781489438000,-150.0,0.00012835,2]
[425094825,1781489438000,-155.1,0.00012841,2]
[425094854,1781489438000,-1500000.0,0.00013899,2]
[425094840,1781489438000,-150.0,0.00013488,2]
[425094852,1781489438000,-159.864442,0.000138,2]
[425094875,1781489438000,-171.9094659,0.00014348,2]
[425094887,1781489438000,-255.0,0.00014407,2]
[425094886,1781489438000,-335758.76658065,0.000144,2]
[425094877,1781489438000,-194.5273094,0.00014348,2]
[425094881,1781489438000,-500.0,0.00014399,2]
[425094878,1781489438000,-72582.2740802,0.00014348,2]
[425094879,1781489438000,-658.90459057,0.0001435,2]
[425094876,1781489438000,-124699.4624948,0.00014348,2]
[425094884,1781489438000,-500.0,0.00014399,2]
[425094885,1781489438000,-500.0,0.00014399,2]
[425094882,1781489438000,-500.0,0.00014399,2]
[425094883,1781489438000,-500.0,0.00014399,2]
[425094888,1781489438000,-1294.62669216,0.00014411,2]
[425094890,1781489438000,-152.84783853,0.0001447,2]
[425094891,1781489438000,-350.0,0.00014501,2]
[425094889,1781489438000,-2000.0,0.00014417,2]
[425094880,1781489438000,-5294.161084,0.00014353,2]
[425094869,1781489438000,-254.97,0.00014168,2]
[425094853,1781489438000,-658.90459058,0.000138,2]
[425094867,1781489438000,-164.32884193,0.00014096,2]
[425094868,1781489438000,-1294.62669216,0.00014167,2]
[425094856,1781489438000,-30429.1014,0.000139,2]
[425094855,1781489438000,-3160.5433,0.000139,2]
[425094860,1781489438000,-18328.59128614,0.00013999,2]
[425094857,1781489438000,-166.66,0.00013916,2]
[425094858,1781489438000,-1294.62669216,0.00013922,2]
[425094861,1781489438000,-1500.0,0.00014,2]
[425094863,1781489438000,-250.0,0.00014,2]
[425094859,1781489438000,-22286.21625473,0.0001399,2]
[425094873,1781489438000,-1294.62669216,0.00014289,2]
[425094872,1781489438000,-6824.0566,0.00014248,2]
[425094862,1781489438000,-20657.05,0.00014,2]
[425094866,1781489438000,-2600.808,0.00014067,2]
[425094870,1781489438000,-477.99150398,0.0001421,7]
[425094864,1781489438000,-1294.62669216,0.00014044,2]
[425094865,1781489438000,-177.997,0.00014067,2]
[425094874,1781489438000,-500.0,0.00014347,2]
[425094871,1781489438000,-698.17,0.00014227,2]
[425094925,1781489439000,-482.41,0.00014714,2]
[425094917,1781489439000,-4139.685,0.00014552,2]
[425094918,1781489439000,-350.0,0.00014586,2]
[425094920,1781489439000,-196.482692,0.000147,2]
[425094921,1781489439000,-441.956508,0.000147,2]
[425094922,1781489439000,-500.0,0.00014705,2]
[425094924,1781489439000,-151.0,0.00014714,2]
[425094923,1781489439000,-250.0080347,0.00014708,2]
[425094926,1781489439000,-500.0,0.00014716,2]
[425094930,1781489439000,-1294.62669216,0.00014778,2]
[425094927,1781489439000,-500.0,0.00014716,2]
[425094919,1781489439000,-1294.62669216,0.00014656,2]
[425094929,1781489439000,-296.522891,0.00014773,2]
[425094931,1781489439000,-350.0,0.000148,2]
[425094940,1781489439000,-500.0,0.00014899,2]
[425094936,1781489439000,-500.0,0.00014899,2]
[425094938,1781489439000,-500.0,0.00014899,2]
[425094932,1781489439000,-500.0,0.00014899,2]
[425094915,1781489439000,-2045.24118643,0.00014552,2]
[425094928,1781489439000,-500.0,0.00014716,2]
[425094916,1781489439000,-3059.55849706,0.00014552,2]
[425094906,1781489439000,-500.0,0.00014516,2]
[425094912,1781489439000,-164.32884193,0.00014548,2]
[425094892,1781489439000,-500.0,0.00014516,2]
[425094894,1781489439000,-500.0,0.00014516,2]
[425094893,1781489439000,-500.0,0.00014516,2]
[425094897,1781489439000,-500.0,0.00014516,2]
[425094895,1781489439000,-500.0,0.00014516,2]
[425094896,1781489439000,-500.0,0.00014516,2]
[425094899,1781489439000,-500.0,0.00014516,2]
[425094898,1781489439000,-500.0,0.00014516,2]
[425094901,1781489439000,-514.03874762,0.00014516,2]
[425094900,1781489439000,-500.0,0.00014516,2]
[425094902,1781489439000,-195.12249258,0.00014516,2]
[425094903,1781489439000,-500.0,0.00014516,2]
[425094904,1781489439000,-500.0,0.00014516,2]
[425094905,1781489439000,-500.0,0.00014516,2]
[425094939,1781489439000,-500.0,0.00014899,2]
[425094908,1781489439000,-151.0,0.00014517,2]
[425094907,1781489439000,-500.0,0.00014516,2]
[425094909,1781489439000,-1619.60867713,0.00014517,2]
[425094911,1781489439000,-350.0,0.00014538,2]
[425094910,1781489439000,-1294.62669216,0.00014533,2]
[425094913,1781489439000,-439.31372657,0.00014552,2]
[425094914,1781489439000,-1159.35587505,0.00014552,2]
[425094937,1781489439000,-513.94820383,0.00014899,2]
[425094935,1781489439000,-500.0,0.00014899,2]
[425094933,1781489439000,-500.0,0.00014899,2]
[425094965,1781489439000,-500.0,0.00014999,2]
[425094967,1781489439000,-500.0,0.00014999,2]
[425094970,1781489439000,-500.0,0.00014999,2]
[425094969,1781489439000,-500.0,0.00014999,2]
[425094968,1781489439000,-500.0,0.00014999,2]
[425094973,1781489439000,-500.0,0.00014999,2]
[425094974,1781489439000,-500.0,0.00014999,2]
[425094971,1781489439000,-500.0,0.00014999,2]
[425094934,1781489439000,-500.0,0.00014899,2]
[425094976,1781489439000,-500.0,0.00014999,2]
[425094977,1781489439000,-500.0,0.00014999,2]
[425094978,1781489439000,-342.76471609,0.00014999,2]
[425094981,1781489439000,-300.0,0.00014999,2]
[425094982,1781489439000,-300.0,0.00014999,2]
[425094984,1781489439000,-10192.37560086,0.00015,2]
[425094983,1781489439000,-200091.10026314,0.00015,2]
[425094980,1781489439000,-305.0662819,0.00014999,2]
[425094985,1781489439000,-300.0,0.00015,2]
[425094986,1781489439000,-461.35,0.00015,2]
[425094987,1781489439000,-8903877.8191686,0.00015,2]
[425094979,1781489439000,-300.0,0.00014999,2]
[425094966,1781489439000,-500.0,0.00014999,2]
[425094972,1781489439000,-500.0,0.00014999,2]
[425094958,1781489439000,-3000.0,0.00014999,2]
[425094962,1781489439000,-500.0,0.00014999,2]
[425094942,1781489439000,-500.0,0.00014899,2]
[425094947,1781489439000,-420.15484955,0.000149,2]
[425094941,1781489439000,-500.0,0.00014899,2]
[425094948,1781489439000,-1081.53561679,0.000149,2]
[425094949,1781489439000,-2039.78545627,0.000149,2]
[425094943,1781489439000,-500.0,0.00014899,2]
[425094945,1781489439000,-10000.0,0.000149,2]
[425094952,1781489439000,-291.7823094,0.00014908,2]
[425094944,1781489439000,-10870.01538874,0.000149,2]
[425094950,1781489439000,-658.90459057,0.000149,2]
[425094953,1781489439000,-1500.0,0.00014974,2]
[425094954,1781489439000,-154.17590159,0.00014986,2]
[425094956,1781489439000,-500.0,0.00014999,2]
[425094959,1781489439000,-500.0,0.00014999,2]
[425094946,1781489439000,-1294.62669216,0.000149,2]
[425094957,1781489439000,-250.0,0.00014999,2]
[425094955,1781489439000,-154.65220624,0.00014986,2]
[425094960,1781489439000,-500.0,0.00014999,2]
[425094961,1781489439000,-500.0,0.00014999,2]
[425094964,1781489439000,-500.0,0.00014999,2]
[425094963,1781489439000,-500.0,0.00014999,2]
[425094988,1781489440000,-966.02901049,0.00015,2]
[425094991,1781489440000,-270.40341536,0.00015,2]
[425094990,1781489440000,-670.67117439,0.00015,2]
[425094989,1781489440000,-537.27830085,0.00015,2]
[425094992,1781489441000,-830.68439755,0.00015,2]
[425094993,1781489441000,-301.87915129,0.00015,2]
[425094994,1781489441000,-890.76692653,0.00015,2]
[425094996,1781489441000,-1689757.07482384,0.00015,2]
[425094995,1781489441000,-2508.26195147,0.00015,2]
[425095003,1781489443000,-1304.85704239,0.00015,2]
[425095004,1781489443000,-269.53870786,0.00015,2]
[425095002,1781489443000,-650.66602361,0.00015,2]
[425095012,1781489446000,-5578.42736774,0.00015,2]
[425095010,1781489446000,-925.0,0.00015,2]
[425095009,1781489446000,-431.885,0.00015,2]
[425095007,1781489446000,-2644.62968745,0.00015,2]
[425095008,1781489446000,-10292.43245139,0.00015,2]
[425095011,1781489446000,-500.0,0.00015,2]
[425095039,1781489737000,1000.0,0.00030136,120]
[425095040,1781489783000,500.0,0.00030136,120]
[425095043,1781489953000,-153.0,0.00011886,2]
[425095044,1781489953000,-95.72837551,0.00011886,2]
[425095046,1781489981000,600.0,0.0003,120]
[425095065,1781490024000,-792.41621003,0.00011786,2]
[425095066,1781490028000,713.0,0.000301,120]
[425095067,1781490044000,600.0,0.000301,120]
[425095069,1781490174000,-151.0,0.00011786,2]
[425095083,1781490181000,-500.0,0.00011884,2]
[425095082,1781490181000,-500.0,0.00011884,2]
[425095080,1781490181000,-218.88774793,0.00011884,2]
[425095079,1781490181000,-151.0,0.00011786,2]
[425095078,1781490181000,-152.0,0.00011786,2]
[425095077,1781490181000,-151.0,0.00011786,2]
[425095074,1781490181000,-150.0,0.00011786,2]
[425095081,1781490181000,-500.0,0.00011884,2]
[425095075,1781490181000,-151.0,0.00011786,2]
[425095073,1781490181000,-151.0,0.00011786,2]
[425095072,1781490181000,-151.0,0.00011786,2]
[425095071,1781490181000,-152.0,0.00011786,2]
[425095070,1781490181000,-151.0,0.00011786,2]
[425095076,1781490181000,-151.0,0.00011786,2]
[425095086,1781490181000,-235.81554954,0.00011884,2]
[425095084,1781490181000,-500.0,0.00011884,2]
[425095085,1781490181000,-500.0,0.00011884,2]
[425095101,1781490181000,-152.0,0.00011887,2]
[425095102,1781490181000,-153.0,0.00011887,2]
[425095098,1781490181000,-151.0,0.00011887,2]
[425095099,1781490181000,-151.0,0.00011887,2]
[425095100,1781490181000,-152.0,0.00011887,2]
[425095087,1781490181000,-500.0,0.00011884,2]
[425095095,1781490181000,-151.0,0.00011887,2]
[425095094,1781490181000,-151.0,0.00011886,2]
[425095097,1781490181000,-151.0,0.00011887,2]
[425095093,1781490181000,-151.0,0.00011886,2]
[425095092,1781490181000,-150.0,0.00011886,2]
[425095090,1781490181000,-150.0,0.00011886,2]
[425095091,1781490181000,-55.27162449,0.00011886,2]
[425095089,1781490181000,-500.0,0.00011884,2]
[425095088,1781490181000,-500.0,0.00011884,2]
[425095096,1781490181000,-300.0,0.00011887,2]
[425095107,1781490182000,-152.0,0.00011887,2]
[425095103,1781490182000,-151.0,0.00011887,2]
[425095104,1781490182000,-153.0,0.00011887,2]
[425095105,1781490182000,-150.0,0.00011887,2]
[425095108,1781490182000,-150.0,0.00011887,2]
[425095106,1781490182000,-150.0,0.00011887,2]
[425095112,1781490182000,-150.0,0.00011887,2]
[425095111,1781490182000,-151.0,0.00011887,2]
[425095115,1781490182000,-150.0,0.00011887,2]
[425095110,1781490182000,-151.0,0.00011887,2]
[425095113,1781490182000,-151.0,0.00011887,2]
[425095114,1781490182000,-151.0,0.00011887,2]
[425095116,1781490182000,-55.02507804,0.00011887,2]
[425095109,1781490182000,-151.0,0.00011887,2]
[425095118,1781490183000,-151.0,0.00011887,2]
[425095117,1781490183000,-95.97492196,0.00011887,2]
[425095120,1781490184000,-670.06,0.00012321,2]
[425095122,1781490184000,-174.21,0.00012462,2]
[425095121,1781490184000,-482.85,0.0001238,2]
[425095123,1781490184000,-356.47547468,0.00012597,2]
[425095124,1781490184000,-500.0,0.00012597,2]
[425095119,1781490184000,-1271.375305,0.00012318,2]
[425095126,1781490184000,-175.94745642,0.00012597,2]
[425095127,1781490184000,-540.7780967,0.00012597,2]
[425095128,1781490184000,-174.7111048,0.00012597,2]
[425095129,1781490184000,-5235.88117967,0.00012598,2]
[425095130,1781490184000,-10000.0,0.00012598,2]
[425095125,1781490184000,-170.73646077,0.00012597,2]
[425095131,1781490186000,-10000.0,0.00012598,2]
[425095132,1781490187000,-10000.0,0.00012598,2]
[425095133,1781490188000,-10000.0,0.00012598,2]
[425095134,1781490190000,-10000.0,0.00012598,2]
[425095136,1781490191000,-8215.51882033,0.00012598,2]
[425095135,1781490191000,-150.0,0.00011786,2]
[425095137,1781490241000,-10000.0,0.00012526,2]
[425095138,1781490243000,-10000.0,0.00012526,2]
[425095140,1781490294000,-299.4751,0.00011726,2]
[425095139,1781490294000,-1012.44233758,0.00011726,2]
[425095141,1781490295000,-500.0,0.00011884,2]
[425095143,1781490295000,-500.0,0.00011884,2]
[425095142,1781490295000,-500.0,0.00011884,2]
[425095147,1781490295000,-500.0,0.00011884,2]
[425095144,1781490295000,-500.0,0.00011884,2]
[425095145,1781490295000,-500.0,0.00011884,2]
[425095146,1781490295000,-500.0,0.00011884,2]
[425095150,1781490295000,-500.0,0.00011884,2]
[425095155,1781490295000,-500.0,0.00011884,2]